bitfinex-derivatives/quotes_BNBF0:USTF0_20250511
["timestamp","ask_amount","ask_price","bid_price","bid_amount"]
[1746979008247,0.28253748,650.83,648.54,0.25899924]
[1746979008543,0.28253748,650.83,648.55,0.25899924]
[1746979008942,0.28253748,650.83,648.56,0.25899924]
[1746979009247,0.26775925,650.84,648.37,0.25899924]
[1746979009449,0.26775925,650.84,648.38,0.25899924]
[1746979009641,1.9829353,651.28,648.38,0.25899924]
[1746979009841,0.26768407,650.83,648.37,0.25899924]
[1746979010041,1.9829353,651.28,648.37,0.25899924]
[1746979010547,0.28261892,651.27,648.37,0.25899924]
[1746979011046,0.28261892,651.27,648.38,0.25899924]
[1746979011346,0.88661032,651.79,648.39,0.25899924]
[1746979011546,0.26763055,651.26,648.39,0.25899924]
[1746979011742,0.28261892,651.78,648.4,0.25899924]
[1746979011942,0.28261892,651.77,648.41,0.25899924]
[1746979012146,0.26763158,651.25,648.41,0.25899924]
[1746979012345,0.28261892,651.76,648.42,0.25899924]
[1746979012545,0.26764187,651.24,648.42,0.25899924]
[1746979012841,1.9829353,651.65,648.43,0.25899924]
[1746979013042,0.88661032,651.64,648.44,0.25899924]
[1746979013449,0.28261892,651.63,648.45,0.25899924]
[1746979013848,0.28261892,651.62,648.46,0.25899924]
[1746979014144,0.28261892,651.61,648.46,0.25899924]
[1746979014346,0.550233,651.61,648.47,0.25899924]
[1746979014650,0.28261892,651.6,648.48,0.25899924]
[1746979015052,1.9829353,651.07,648.49,0.25899924]
[1746979015352,0.88661032,651.06,648.5,0.25899924]
[1746979015748,1.9829353,650.93,648.51,0.25899924]
[1746979016250,0.88661032,650.92,648.52,0.25899924]
[1746979016751,0.88661032,650.92,648.53,0.25899924]
[1746979017152,0.28261892,650.92,648.54,0.25899924]
[1746979017357,2.26555422,650.92,648.54,0.25899924]
[1746979017549,0.28261892,650.91,648.55,0.25899924]
[1746979017849,0.28261892,650.91,648.56,0.25899924]
[1746979018248,0.28261892,650.91,648.57,0.25899924]
[1746979018764,0.28261892,650.91,648.58,0.25899924]
[1746979018954,0.26769334,650.9,648.59,0.25899924]
[1746979019254,0.28261892,650.89,648.6,0.25899924]
[1746979019656,0.28261892,650.89,648.61,0.25899924]
[1746979019956,0.28261892,650.89,648.62,0.25899924]
[1746979020356,0.28261892,650.89,648.63,0.25899924]
[1746979020850,0.28261892,650.89,648.64,0.25899924]
[1746979021052,0.28261892,650.89,648.65,0.25899924]
[1746979021355,0.28261892,650.89,648.66,0.25899924]
[1746979021549,0.28261892,650.89,648.67,0.25899924]
[1746979021954,1.9829353,650.84,648.67,0.25899924]
[1746979022957,1.9829353,650.84,648.68,0.25899924]
[1746979023256,1.9829353,650.84,648.69,0.25899924]
[1746979023560,1.9829353,650.84,648.7,0.25899924]
[1746979023959,1.9829353,650.84,648.71,0.25899924]
[1746979024258,1.9829353,650.84,648.72,0.25899924]
[1746979024459,0.26769334,650.9,648.72,0.25899924]
[1746979024658,0.26769334,650.9,648.5,0.25899924]
[1746979025059,0.26769334,650.9,648.51,0.25899924]
[1746979025260,0.26769334,650.9,648.5,0.25899924]
[1746979025854,0.26769334,650.9,648.51,0.25899924]
[1746979026161,0.26769334,650.9,648.52,0.25899924]
[1746979026659,0.26769334,650.9,648.53,0.25899924]
[1746979027063,0.26769334,650.9,648.54,0.25899924]
[1746979027364,0.26769334,650.9,648.55,0.25899924]
[1746979027864,0.26769334,650.9,648.56,0.25899924]
[1746979028058,0.26769334,650.9,648.57,0.25899924]
[1746979028259,0.26769334,650.9,648.58,0.25899924]
[1746979028562,0.26769334,650.9,648.59,0.25899924]
[1746979028762,1.9829353,651.53,648.59,0.25899924]
[1746979029062,1.9829353,651.53,648.6,0.25899924]
[1746979029263,0.2673766,651.52,648.6,0.25899924]
[1746979029562,0.2673766,651.52,648.61,0.25899924]
[1746979030061,0.2673766,651.52,648.62,0.25899924]
[1746979030359,0.2673766,651.52,648.63,0.25899924]
[1746979030764,0.2673766,651.52,648.64,0.25899924]
[1746979031064,0.2673766,651.52,648.65,0.25899924]
[1746979031259,0.28224374,651.51,648.65,0.25899924]
[1746979031559,0.28224374,651.51,648.66,0.25899924]
[1746979031865,0.28224374,651.51,648.67,0.25899924]
[1746979032164,0.28224374,651.51,648.68,0.25899924]
[1746979032368,0.28224374,651.51,648.69,0.25899924]
[1746979032567,0.28224374,651.51,648.7,0.25899924]
[1746979032868,0.28224374,651.51,648.71,0.25899924]
[1746979033166,0.28224374,651.51,648.72,0.25899924]
[1746979033363,0.28224374,651.51,648.73,0.25899924]
[1746979033562,0.2673766,651.52,648.74,0.25899924]
[1746979033863,0.2673766,651.52,648.75,0.25899924]
[1746979034060,0.2673766,651.52,648.76,0.25899924]
[1746979034465,0.2673766,651.52,648.77,0.25899924]
[1746979034865,0.2673766,651.52,648.78,0.25899924]
[1746979035068,0.2673766,651.52,648.79,0.25899924]
[1746979035370,0.28220221,651.51,648.8,0.25899924]
[1746979035565,0.28220221,651.51,648.81,0.25899924]
[1746979035974,0.28220221,651.51,648.82,0.25899924]
[1746979036269,0.2673766,651.52,648.83,0.25899924]
[1746979036571,1.9829353,652.27,648.83,0.25899924]
[1746979036768,1.9829353,652.27,648.84,0.25899924]
[1746979036969,0.26737968,651.86,648.84,0.25899924]
[1746979037168,0.30688496,651.71,648.98,0.3081759]
[1746979037770,0.28222125,651.7,648.99,0.25899924]
[1746979038071,0.28222125,651.7,649.0,0.25899924]
[1746979038370,0.28222125,651.7,649.01,0.25899924]
[1746979038576,0.28222125,651.7,649.02,0.25899924]
[1746979038873,0.28222125,651.7,649.03,0.25899924]
[1746979039074,0.28222125,651.7,649.04,0.25899924]
[1746979039275,0.28222125,651.7,649.05,0.25899924]
[1746979039575,0.28222125,651.7,649.06,0.25899924]
[1746979039776,0.54958244,651.69,649.07,0.25899924]
[1746979040075,0.28222125,651.68,649.08,0.25899924]
[1746979040274,0.28222125,651.68,649.09,0.25899924]
[1746979040474,0.28222125,651.68,649.1,0.25899924]
[1746979040675,0.28222125,651.68,649.11,0.25899924]
[1746979040974,0.28222125,651.67,649.12,0.25899924]
[1746979041171,0.28222125,651.68,649.13,0.25899924]
[1746979041375,0.28222125,651.68,649.14,0.25899924]
[1746979041674,0.28222125,651.68,649.15,0.25899924]
[1746979041875,0.28222125,651.68,649.16,0.25899924]
[1746979042071,0.28222125,651.68,649.17,0.25899924]
[1746979042277,0.28222125,651.68,649.18,0.25899924]
[1746979042772,0.28222125,651.68,649.19,0.25899924]
[1746979043076,0.28222125,651.68,649.2,0.25899924]
[1746979043374,0.28222125,651.68,649.21,0.25899924]
[1746979043577,0.28222125,651.68,649.22,0.25899924]
[1746979043778,0.28222125,651.68,649.23,0.25899924]
[1746979043974,0.28222125,651.68,649.24,0.25899924]
[1746979044278,0.28222125,651.68,649.25,0.25899924]
[1746979044479,0.28222125,651.68,649.26,0.25899924]
[1746979044677,0.28222125,651.68,649.27,0.25899924]
[1746979044877,0.28222125,651.68,649.28,0.25899924]
[1746979045178,0.28222125,651.68,649.29,0.25899924]
[1746979045379,0.28222125,651.67,649.3,0.25899924]
[1746979045575,0.28222125,651.66,649.31,0.25899924]
[1746979045774,0.28222125,651.7,649.32,0.25899924]
[1746979045978,0.26734065,651.66,649.32,0.25899924]
[1746979046279,0.28222125,651.65,649.33,0.25899924]
[1746979046475,0.28222125,651.65,649.34,0.25899924]
[1746979046874,0.28222125,651.65,649.35,0.25899924]
[1746979047179,0.28222125,651.65,649.36,0.25899924]
[1746979047380,0.28222125,651.65,649.37,0.25899924]
[1746979047679,0.28222125,651.65,649.38,0.25899924]
[1746979047983,0.26734065,651.66,649.02,0.25899924]
[1746979048379,0.26734065,651.66,649.03,0.25899924]
[1746979048583,0.30688496,651.71,649.03,0.25899924]
[1746979048777,0.30688496,651.71,649.04,0.25899924]
[1746979048979,0.26727289,651.65,649.04,0.25899924]
[1746979049381,0.28215956,651.64,649.05,0.25899924]
[1746979049883,0.28215956,651.64,649.06,0.25899924]
[1746979050484,0.26727289,651.65,649.07,0.25899924]
[1746979050781,0.26727289,651.65,649.08,0.25899924]
[1746979051085,0.28213203,651.64,649.09,0.25899924]
[1746979051385,0.28213203,651.64,649.02,0.26727289]
[1746979051386,0.28213203,651.64,649.1,0.25899924]
[1746979051887,0.28213203,651.64,649.11,0.25899924]
[1746979052588,0.28213203,651.64,649.12,0.25899924]
[1746979052887,0.28213203,651.64,649.13,0.25899924]
[1746979053189,0.28213203,651.64,649.14,0.25899924]
[1746979053488,0.28213203,651.64,649.15,0.25899924]
[1746979054190,0.28213203,651.64,649.02,0.26727289]
[1746979054191,0.28213203,651.64,649.16,0.25899924]
[1746979054588,0.28213203,651.64,649.17,0.25899924]
[1746979055082,0.28213203,651.64,649.18,0.25899924]
[1746979055488,0.28213203,651.64,649.19,0.25899924]
[1746979055788,0.28213203,651.64,649.2,0.25899924]
[1746979056289,0.28213203,651.64,649.21,0.25899924]
[1746979056584,0.26727289,651.65,649.22,0.25899924]
[1746979056889,0.26727289,651.65,649.23,0.25899924]
[1746979057389,0.26727289,651.65,649.02,0.26727289]
[1746979057591,0.30688496,651.71,648.98,0.3081759]
[1746979057792,0.30688496,651.71,649.03,0.25853482]
[1746979057990,0.28206921,651.7,649.04,0.25853482]
[1746979058391,0.30688496,651.71,649.05,0.25853482]
[1746979058687,0.30688496,651.71,649.06,0.25853482]
[1746979058892,0.26719491,651.7,649.06,0.25853482]
[1746979059192,0.26719491,651.7,649.07,0.25853482]
[1746979059591,0.26719491,651.7,649.08,0.25853482]
[1746979059887,0.26719491,651.7,649.09,0.25853482]
[1746979060087,0.26719491,651.7,649.1,0.25853482]
[1746979060491,0.26719491,651.7,649.11,0.25853482]
[1746979060794,0.26718055,651.69,649.12,0.25853482]
[1746979061093,0.26718055,651.69,649.13,0.25853482]
[1746979061488,0.26718055,651.69,649.14,0.25853482]
[1746979061894,0.26718055,651.69,649.15,0.25853482]
[1746979062295,0.26718055,651.69,649.16,0.25853482]
[1746979062791,0.26718055,651.69,649.17,0.25853482]
[1746979063194,0.26718055,651.69,649.18,0.25853482]
[1746979063596,0.30688496,651.71,649.19,0.25853482]
[1746979063895,0.26718055,651.68,649.2,0.25853482]
[1746979064197,0.26718055,651.68,649.21,0.25853482]
[1746979064696,0.26718055,651.68,649.22,0.25853482]
[1746979065297,0.26718055,651.68,649.23,0.25853482]
[1746979065499,0.26718055,651.68,649.1,0.26718055]
[1746979065893,0.26718055,651.68,649.11,0.25841558]
[1746979066198,0.26718055,651.68,649.12,0.25841558]
[1746979066497,0.26718055,651.68,649.13,0.25841558]
[1746979066694,0.30688496,651.71,649.13,0.25841558]
[1746979066898,0.26720517,651.67,649.14,0.25841558]
[1746979067398,0.26720517,651.67,649.15,0.25841558]
[1746979067698,0.26720517,651.67,649.16,0.25841558]
[1746979067894,0.26720517,651.67,649.17,0.25841558]
[1746979068198,0.26720517,651.67,649.18,0.25841558]
[1746979068496,0.26720517,651.67,649.19,0.25841558]
[1746979068795,0.26720517,651.67,649.2,0.25841558]
[1746979069199,0.26720517,651.67,649.21,0.25841558]
[1746979069501,0.26720517,651.67,649.22,0.25841558]
[1746979069695,0.30688496,651.71,649.22,0.25841558]
[1746979069900,0.26718055,651.66,649.23,0.25841558]
[1746979070098,0.26718055,651.66,649.24,0.25841558]
[1746979070500,0.26718055,651.66,649.25,0.25841558]
[1746979070796,0.26718055,651.66,649.26,0.25841558]
[1746979071201,0.26718055,651.66,649.27,0.25841558]
[1746979071401,0.26718055,651.66,649.15,0.26718055]
[1746979071702,0.26718055,651.66,649.16,0.25841645]
[1746979072101,0.26718055,651.66,649.17,0.25841645]
[1746979072300,0.30688496,651.71,649.15,0.26718055]
[1746979072601,0.30688496,651.71,648.98,0.3081759]
[1746979072803,0.30688496,651.71,649.15,0.26713338]
[1746979073102,0.30688496,651.71,649.16,0.2583422]
[1746979073402,0.30688496,651.71,649.17,0.2583422]
[1746979073601,0.30688496,651.71,649.18,0.2583422]
[1746979073805,0.30688496,651.71,649.19,0.2583422]
[1746979074296,0.30688496,651.71,649.2,0.2583422]
[1746979074997,0.30688496,651.71,649.21,0.2583422]
[1746979075502,0.30688496,651.71,649.22,0.2583422]
[1746979075901,0.30688496,651.71,649.23,0.2583422]
[1746979076103,0.30688496,651.71,649.24,0.2583422]
[1746979076496,0.30688496,651.71,649.25,0.2583422]
[1746979077002,0.30688496,651.71,649.26,0.2583422]
[1746979077402,0.30688496,651.71,649.27,0.2583422]
[1746979077799,0.30688496,651.71,649.28,0.2583422]
[1746979078003,0.30688496,651.71,649.29,0.2583422]
[1746979078398,0.30688496,651.71,649.3,0.2583422]
[1746979078903,0.30688496,651.71,649.42,0.3079671]
[1746979079202,0.30688496,651.71,649.43,0.2583422]
[1746979079502,0.30688496,651.71,649.44,0.2583422]
[1746979079905,0.30688496,651.71,649.45,0.2583422]
[1746979080204,0.30688496,651.71,649.46,0.2583422]
[1746979080607,0.30688496,651.71,649.47,0.2583422]
[1746979081105,0.30688496,651.71,649.48,0.2583422]
[1746979081306,0.30688496,651.71,649.49,0.2583422]
[1746979081601,0.30688496,651.71,649.5,0.2583422]
[1746979081806,0.30688496,651.71,649.51,0.2583422]
[1746979082201,0.30688496,651.71,649.52,0.2583422]
[1746979082399,0.30688496,651.71,649.42,0.3079671]
[1746979082400,0.30688496,651.71,649.53,0.2583422]
[1746979082702,0.30688496,651.71,649.54,0.2583422]
[1746979083105,0.30688496,651.71,649.55,0.2583422]
[1746979083606,0.30688496,651.71,649.56,0.2583422]
[1746979083804,0.30688496,651.71,649.57,0.2583422]
[1746979084106,0.30688496,651.71,649.58,0.2583422]
[1746979084302,0.30688496,651.71,649.59,0.2583422]
[1746979084606,0.30688496,651.71,649.42,0.3079671]
[1746979084607,0.30688496,651.71,649.6,0.2583422]
[1746979085003,0.30688496,651.71,649.61,0.2583422]
[1746979085607,0.30688496,651.71,649.62,0.2583422]
[1746979086507,0.30688496,651.71,649.63,0.2583422]
[1746979086809,0.30688496,651.71,649.64,0.2583422]
[1746979087211,0.30688496,651.71,649.65,0.2583422]
[1746979087804,0.30688496,651.71,649.66,0.2583422]
[1746979088006,0.30688496,651.71,649.67,0.2583422]
[1746979088309,0.30688496,651.71,649.68,0.2583422]
[1746979088610,0.30688496,651.71,649.69,0.2583422]
[1746979088808,0.30688496,651.71,649.7,0.2583422]
[1746979089012,0.26705753,651.89,649.52,0.26705753]
[1746979089311,0.26705753,651.89,649.53,0.258253]
[1746979089510,0.26705753,651.89,649.54,0.258253]
[1746979090009,0.26705753,651.89,649.55,0.258253]
[1746979090311,0.26705753,651.89,649.56,0.258253]
[1746979090709,0.26705753,651.89,649.57,0.258253]
[1746979090905,0.26705753,651.89,649.58,0.258253]
[1746979091409,0.26705753,651.89,649.59,0.258253]
[1746979091809,0.26705753,651.89,649.6,0.258253]
[1746979092205,0.26705753,651.89,649.61,0.258253]
[1746979092409,0.26705753,651.89,649.62,0.258253]
[1746979092706,0.26705753,651.89,649.63,0.258253]
[1746979093210,0.26705753,651.89,649.64,0.258253]
[1746979093611,0.26705753,651.89,649.65,0.258253]
[1746979094107,0.26705753,651.89,649.66,0.258253]
[1746979094612,0.26705753,651.89,649.52,0.26705753]
[1746979094613,0.26705753,651.89,649.67,0.258253]
[1746979095014,0.6053101,652.79,649.68,0.258253]
[1746979095212,0.26703499,651.99,649.69,0.258253]
[1746979095710,0.26703499,651.99,649.7,0.258253]
[1746979096309,0.26703499,651.99,649.71,0.258253]
[1746979097215,0.26703499,651.99,649.72,0.258253]
[1746979097415,1.9829353,652.53,649.72,0.258253]
[1746979097610,1.9829353,652.47,649.79,0.96619065]
[1746979098011,0.26691927,652.16,649.8,0.258253]
[1746979098317,0.26691927,652.16,649.81,0.258253]
[1746979098620,0.26691927,652.16,649.82,0.258253]
[1746979099020,0.26691927,652.16,649.83,0.258253]
[1746979099420,0.26691927,652.16,649.84,0.258253]
[1746979099716,0.26691927,652.16,649.94,0.30772071]
[1746979100322,0.26691927,652.16,649.95,0.258253]
[1746979100620,0.26691927,652.16,649.96,0.258253]
[1746979100922,0.26691927,652.16,649.97,0.258253]
[1746979101221,0.26691927,652.16,649.98,0.258253]
[1746979101418,0.26691927,652.16,649.99,0.30769704]
[1746979101616,0.26691927,652.16,649.99,0.56595004]
[1746979101826,0.26691927,652.16,650.0,0.258253]
[1746979102220,0.26691927,652.16,650.01,0.258253]
[1746979102419,0.26691927,652.16,649.99,0.30769704]
[1746979102624,1.9829353,653.06,649.99,0.30769704]
[1746979102925,0.26696227,652.1,650.0,0.25817437]
[1746979103425,0.26696227,652.1,650.01,0.25817437]
[1746979104025,0.26696227,652.1,650.02,0.25817437]
[1746979104324,0.26696227,652.1,650.03,0.25817437]
[1746979104624,0.26696227,652.1,650.04,0.25817437]
[1746979105025,0.26696227,652.1,650.05,0.25817437]
[1746979105629,1.9829353,653.04,650.05,0.25817437]
[1746979105830,1.9829353,653.04,650.06,0.25817437]
[1746979106228,1.9829353,653.42,650.07,0.25817437]
[1746979106623,1.9829353,653.42,650.08,0.25817437]
[1746979106829,0.60505881,653.41,650.08,0.25817437]
[1746979107025,0.26680365,652.08,650.08,0.25817437]
[1746979107229,0.26680365,652.08,650.09,0.25817437]
[1746979107432,0.26680365,652.08,650.1,0.25817437]
[1746979107833,0.26680365,652.08,650.11,0.25817437]
[1746979108024,0.26680365,652.08,650.12,0.25817437]
[1746979108431,1.9829353,652.9,650.12,0.25817437]
[1746979108632,0.60525637,652.89,650.13,0.25817437]
[1746979108828,0.2669121,652.21,650.14,0.25817437]
[1746979109132,0.2669121,652.21,650.15,0.25817437]
[1746979109433,0.2669121,652.21,650.16,0.25817437]
[1746979110137,0.2669121,652.21,650.17,0.25817437]
[1746979110339,0.2669121,652.21,650.18,0.25817437]
[1746979110637,0.2669121,652.21,650.19,0.25817437]
[1746979110941,0.2669121,652.21,650.2,0.25817437]
[1746979111238,0.2669121,652.21,650.21,0.25817437]
[1746979111544,0.2669121,652.21,650.22,0.25817437]
[1746979111744,1.9829353,652.74,650.22,0.25817437]
[1746979111940,1.9829353,652.74,650.23,0.25817437]
[1746979112147,0.26689266,652.22,650.25,0.307574]
[1746979112444,0.26689266,652.22,650.26,0.25817437]
[1746979112846,0.26689266,652.22,650.27,0.25817437]
[1746979113147,0.26689266,652.22,650.28,0.25817437]
[1746979113541,0.26689266,652.22,650.29,0.25817437]
[1746979113745,0.26689266,652.22,650.3,0.25817437]
[1746979114246,0.26689266,652.22,650.31,0.25817437]
[1746979114648,1.9829353,652.86,650.32,0.25817437]
[1746979115040,0.26692234,651.96,650.32,0.25817437]
[1746979115247,0.26692234,651.96,650.33,0.25817437]
[1746979115646,0.26692234,651.96,650.34,0.25817437]
[1746979115946,0.26692234,651.96,650.35,0.25817437]
[1746979116345,0.26692234,651.96,650.36,0.25817437]
[1746979116648,0.26692234,651.96,650.37,0.25817437]
[1746979116944,0.26692234,651.96,650.38,0.25817437]
[1746979117344,0.26692234,651.96,650.39,0.25817437]
[1746979117650,0.6045962,652.84,650.39,0.25817437]
[1746979117849,0.6045962,652.84,650.4,0.25817437]
[1746979118046,0.6045962,652.84,650.41,0.25817437]
[1746979118451,0.6045962,652.84,650.42,0.25817437]
[1746979118943,0.6045962,652.84,650.25,0.307574]
[1746979118944,0.26687526,651.88,650.43,0.25817437]
[1746979119344,0.26687526,651.88,650.44,0.25817437]
[1746979119750,0.26687526,651.88,650.45,0.25817437]
[1746979120153,0.26687526,651.88,650.46,0.25817437]
[1746979120445,0.26687526,651.88,650.47,0.25817437]
[1746979120650,1.9829353,652.63,650.25,0.307574]
[1746979121052,1.9829353,652.63,650.26,0.25828943]
[1746979121350,1.9829353,652.63,650.27,0.25828943]
[1746979121750,1.9829353,652.63,650.28,0.25828943]
[1746979121952,0.2668947,651.89,650.28,0.52518413]
[1746979122151,0.2668947,651.89,650.29,0.25828943]
[1746979122355,0.2668947,651.89,650.3,0.25828943]
[1746979122651,0.2668947,651.89,650.31,0.25828943]
[1746979122949,0.2668947,651.89,650.32,0.25828943]
[1746979123453,0.2668947,651.89,650.33,0.25828943]
[1746979123651,1.9829353,652.54,650.33,0.25828943]
[1746979123855,0.26697046,651.89,650.34,0.25828943]
[1746979124150,0.26697046,651.89,650.35,0.25828943]
[1746979124355,0.26697046,651.89,650.36,0.25828943]
[1746979124755,0.26697046,651.89,650.37,0.25828943]
[1746979125362,0.26697046,651.89,650.38,0.25828943]
[1746979125658,0.26697046,651.89,650.4,0.30750307]
[1746979126254,0.26697046,651.89,650.41,0.25828943]
[1746979126653,1.9829353,652.95,650.43,0.30748889]
[1746979127061,1.9829353,652.95,650.44,0.25828943]
[1746979127261,1.9829353,652.95,650.45,0.25828943]
[1746979127559,1.9829353,652.95,650.46,0.25828943]
[1746979127760,1.9829353,652.95,650.47,0.30746998]
[1746979127965,0.26684354,651.89,650.47,0.56575941]
[1746979128361,0.26684354,651.89,650.48,0.25828943]
[1746979128565,0.26684354,651.89,650.48,0.56575468]
[1746979128958,0.26684354,651.89,650.49,0.25828943]
[1746979129164,0.26684354,651.89,650.5,0.25828943]
[1746979129565,0.26684354,651.89,650.51,0.25828943]
[1746979129867,0.26684354,651.89,650.52,0.25828943]
[1746979130267,0.26684354,651.89,650.53,0.25828943]
[1746979130667,0.26684354,651.89,650.54,0.25828943]
[1746979131166,0.26684354,651.89,650.55,0.25828943]
[1746979131666,0.26684354,651.89,650.56,0.25828943]
[1746979131962,0.26684354,651.89,650.57,0.25828943]
[1746979132263,0.26684354,651.89,650.58,0.25828943]
[1746979132668,0.26684354,651.89,650.59,0.25828943]
[1746979132970,0.26684354,651.89,650.6,0.56569797]
[1746979133366,0.26684354,651.89,650.61,0.30740382]
[1746979133566,0.26684354,651.89,650.61,0.56569325]
[1746979133972,0.26684354,651.89,650.62,0.25828943]
[1746979134369,0.26684354,651.89,650.63,0.25828943]
[1746979134668,0.26684354,651.89,650.64,0.25828943]
[1746979135064,0.26684354,651.89,650.65,0.25828943]
[1746979135469,0.26684354,651.89,650.66,0.25828943]
[1746979135671,1.9829353,652.57,650.66,0.25828943]
[1746979135871,0.26694486,651.86,650.67,0.25828943]
[1746979136270,0.26694486,651.86,650.68,0.25828943]
[1746979136671,0.26694486,651.86,650.69,0.25828943]
[1746979136968,0.26694486,651.86,650.7,0.25828943]
[1746979137372,0.26694486,651.86,650.71,0.25828943]
[1746979137667,0.26694486,651.86,650.72,0.25828943]
[1746979138072,0.26694486,651.86,650.73,0.25828943]
[1746979138373,0.26694486,651.86,650.74,0.25828943]
[1746979138675,1.9829353,652.56,650.74,0.25828943]
[1746979138874,1.9829353,652.56,650.75,0.25828943]
[1746979139174,1.9829353,652.56,650.76,0.25828943]
[1746979139468,1.9829353,652.56,650.77,0.25828943]
[1746979139675,1.9829353,652.63,650.77,0.25828943]
[1746979139869,1.9829353,652.63,650.78,0.25828943]
[1746979140073,0.26689163,651.86,650.78,0.25828943]
[1746979140272,0.26689163,651.86,650.79,0.25828943]
[1746979140473,0.26689163,651.86,650.62,0.25828943]
[1746979141676,1.9829353,652.63,650.62,0.25828943]
[1746979142077,1.9829353,652.72,650.62,0.25828943]
[1746979142476,1.9829353,652.72,650.63,1.17979548]
[1746979142873,0.26688345,651.86,650.64,1.17979548]
[1746979143077,0.26688345,651.86,650.64,0.25828943]
[1746979143272,0.26688345,651.86,650.65,1.17991337]
[1746979143672,0.26688345,651.86,650.66,1.4382028]
[1746979143878,0.26688345,651.86,650.67,1.17991337]
[1746979144280,0.26688345,651.86,650.67,1.4382028]
[1746979144480,0.26688345,651.86,650.68,1.17991337]
[1746979144674,0.60471699,652.85,650.69,0.25828943]
[1746979145080,0.60471699,652.85,650.7,1.17991337]
[1746979145381,0.60471699,652.85,650.71,0.25828943]
[1746979145580,0.60471699,652.85,650.72,1.17991337]
[1746979145777,0.60471699,652.85,650.73,1.17991337]
[1746979145978,0.26686298,651.86,650.74,1.4382028]
[1746979146183,0.26686298,651.86,650.75,1.17991337]
[1746979146484,0.26686298,651.86,650.76,1.17991337]
[1746979146783,0.26686298,651.86,650.75,0.25828943]
[1746979146784,0.26686298,651.86,650.77,1.4382028]
[1746979146982,0.26686298,651.86,650.78,1.17991337]
[1746979147183,0.26686298,651.86,650.79,1.17991337]
[1746979147483,0.26686298,651.86,650.8,0.25832909]
[1746979147682,0.60468022,652.78,650.81,1.17991337]
[1746979147884,0.26695408,651.85,650.81,1.17991337]
[1746979148083,0.26695408,651.85,650.82,1.43824246]
[1746979148282,0.26695408,651.85,650.83,1.43824246]
[1746979148582,0.26695408,651.85,650.84,1.17991337]
[1746979148779,0.26695408,651.85,650.85,1.17991337]
[1746979148985,0.26695408,651.85,650.86,1.43824246]
[1746979149287,0.26695408,651.85,650.87,0.25832909]
[1746979149484,0.26695408,651.85,650.87,1.43706732]
[1746979149682,0.26695408,651.85,650.88,1.17873823]
[1746979149987,0.26695408,651.85,650.61,0.30740382]
[1746979149988,0.26695408,651.85,650.89,1.43706732]
[1746979150191,0.26695408,651.85,650.9,1.17873823]
[1746979150390,0.26695408,651.85,650.61,0.30740382]
[1746979150689,1.9829353,652.66,650.62,1.43700344]
[1746979150890,0.26701962,651.84,650.63,1.17867399]
[1746979151093,0.26701962,651.84,650.63,1.43700344]
[1746979151292,0.26701962,651.84,650.64,1.43700344]
[1746979151493,0.26701962,651.84,650.65,1.43700344]
[1746979151689,0.26701962,651.84,650.66,1.17867399]
[1746979151896,0.26701962,651.84,650.66,1.43700344]
[1746979152389,0.26701962,651.84,650.67,1.43700344]
[1746979152594,0.26701962,651.84,650.67,0.25832945]
[1746979152993,0.26701962,651.84,650.62,0.25832945]
[1746979153693,0.6044995,652.64,650.62,0.25832945]
[1746979153895,1.9829353,652.43,650.62,0.25832945]
[1746979154799,0.30681434,651.86,650.62,0.25832945]
[1746979154993,0.57376637,651.86,650.62,0.25832945]
[1746979155297,0.57376637,651.86,649.78,0.25832945]
[1746979155492,0.57376637,651.86,650.63,0.25832945]
[1746979155692,0.57376637,651.86,649.81,0.25832945]
[1746979155998,0.57376637,651.86,649.82,0.25832945]
[1746979156299,0.57376637,651.86,649.8,0.30778701]
[1746979156596,0.57376637,651.86,649.81,0.25845255]
[1746979156797,0.57376637,651.86,649.83,0.26712621]
[1746979157400,0.30681434,651.86,649.82,0.25845255]
[1746979157698,0.30681434,651.86,649.84,0.25845255]
[1746979157891,0.30681434,651.86,649.83,0.25845255]
[1746979158398,0.30681434,651.86,649.8,0.30778701]
[1746979158599,0.30681434,651.86,649.81,0.25844486]
[1746979158898,0.30681434,651.86,649.82,0.25844486]
[1746979159102,0.30681434,651.86,649.83,0.25844486]
[1746979159400,0.30681434,651.86,649.84,0.25844486]
[1746979159600,0.30681434,651.86,649.85,0.25844486]
[1746979159900,0.30681434,651.86,649.86,0.25844486]
[1746979160199,0.30681434,651.86,649.87,0.25844486]
[1746979160399,0.30681434,651.86,649.88,0.25844486]
[1746979160594,0.30681434,651.86,649.89,0.25844486]
[1746979160896,0.30681434,651.86,649.9,0.25844486]
[1746979161300,0.30681434,651.86,649.91,0.25844486]
[1746979162000,0.30681434,651.86,649.92,0.25844486]
[1746979162403,0.30681434,651.86,649.93,0.25844486]
[1746979162702,0.30681434,651.86,649.94,0.25844486]
[1746979163001,0.30681434,651.86,649.95,0.25844486]
[1746979163303,0.30681434,651.86,649.96,0.25844486]
[1746979163601,0.30681434,651.86,649.97,0.25844486]
[1746979163797,0.30681434,651.86,649.8,0.30778701]
[1746979164101,0.30681434,651.86,649.81,0.25844886]
[1746979164502,0.30681434,651.86,649.82,0.25844886]
[1746979164899,0.30681434,651.86,649.83,0.25844886]
[1746979165503,0.30681434,651.86,649.84,0.25844886]
[1746979165898,0.30681434,651.86,649.8,0.30778701]